bitfinex/quotes_SOLUSD_20250406
["timestamp","ask_amount","ask_price","bid_price","bid_amount"]
[1743912544484,23.43574095,119.96,119.95,0.063]
[1743912545080,62.08538981,119.96,119.95,0.063]
[1743912545773,257.30538981,119.96,119.95,0.063]
[1743912545971,258.43098981,119.96,119.95,0.063]
[1743912546370,0.42648471,119.94,119.93,0.063]
[1743912546572,35.75018981,119.94,119.93,0.063]
[1743912546783,45.57613357,119.92,119.88,0.063]
[1743912546964,19.57613357,119.91,119.88,0.063]
[1743912547152,16.67405624,119.89,119.88,0.063]
[1743912547360,17.17405624,119.89,119.88,0.063]
[1743912547584,21.31080707,119.89,119.88,0.063]
[1743912548170,40.38694064,119.89,119.88,0.063]
[1743912548558,46.22554064,119.89,119.88,0.063]
[1743912551083,16.67405624,119.89,119.88,0.063]
[1743912551600,22.51265624,119.89,119.88,0.063]
[1743912552859,16.67405624,119.89,119.88,0.063]
[1743912554366,22.51265624,119.89,119.88,0.063]
[1743912556882,22.68107752,119.89,119.88,0.063]
[1743912562590,41.75721109,119.89,119.88,0.063]
[1743912567499,81.674,119.87,119.85,0.063]
[1743912567796,16.67405624,119.87,119.85,0.063]
[1743912567993,35.75018981,119.87,119.85,0.063]
[1743912569507,41.58978981,119.87,119.85,0.063]
[1743912570474,0.5,119.86,119.85,0.063]
[1743912570682,17.17405624,119.86,119.85,0.063]
[1743912571613,23.01415624,119.86,119.85,0.063]
[1743912571977,22.51415624,119.86,119.85,0.063]
[1743912572195,23.01415624,119.86,119.85,0.063]
[1743912574586,42.09028981,119.86,119.85,0.063]
[1743912575996,42.12028981,119.86,119.85,0.063]
[1743912576791,16.67405624,119.82,119.81,7.9542]
[1743912581114,16.67405624,119.83,119.81,7.9542]
[1743912581607,16.67405624,119.82,119.81,0.063]
[1743912582106,16.67405624,119.83,119.81,0.063]
[1743912582297,16.67405624,119.82,119.81,0.063]
[1743912583515,22.51605624,119.82,119.81,0.063]
[1743912587215,16.67405624,119.82,119.81,0.063]
[1743912587900,22.51605624,119.82,119.81,0.063]
[1743912590517,16.67405624,119.82,119.81,0.063]
[1743912595517,22.51605624,119.82,119.81,0.063]
[1743912596826,22.67245923,119.82,119.81,0.063]
[1743912598496,41.7485928,119.82,119.81,0.063]
[1743912599729,22.67245923,119.82,119.81,0.063]
[1743912601408,41.7485928,119.82,119.81,0.063]
[1743912601600,42.2485928,119.82,119.81,0.063]
[1743912601803,41.7485928,119.82,119.81,0.063]
[1743912602426,42.2485928,119.82,119.81,0.063]
[1743912602610,41.7485928,119.82,119.81,0.063]
[1743912603431,42.2485928,119.82,119.81,0.063]
[1743912603601,41.7485928,119.82,119.81,0.063]
[1743912603809,42.2485928,119.82,119.81,0.063]
[1743912604101,41.7485928,119.82,119.81,0.063]
[1743912604301,42.2485928,119.82,119.81,0.063]
[1743912604623,41.7485928,119.82,119.81,0.063]
[1743912605503,22.67245923,119.82,119.81,0.063]
[1743912607928,42.2485928,119.82,119.81,0.063]
[1743912608104,98.97405624,119.81,119.8,0.063]
[1743912610436,22.51655624,119.81,119.8,0.063]
[1743912613936,16.67405624,119.81,119.8,0.063]
[1743912614108,22.67265923,119.82,119.8,0.063]
[1743912615638,0.15640299,119.82,119.81,7.5646]
[1743912616214,16.67405624,119.83,119.81,7.5646]
[1743912616936,0.17672907,119.82,119.81,7.5646]
[1743912622142,22.69278531,119.82,119.8,0.063]
[1743912622439,16.67405624,119.81,119.8,0.063]
[1743912624621,22.51655624,119.81,119.8,0.063]
[1743912625730,22.69308531,119.82,119.8,0.063]
[1743912625930,6.01902907,119.82,119.8,0.063]
[1743912626122,22.69308531,119.82,119.8,0.063]
[1743912627141,22.72308531,119.82,119.8,0.063]
[1743912628041,16.67405624,119.81,119.8,0.063]
[1743912628435,22.51655624,119.81,119.8,0.063]
[1743912630247,16.67405624,119.81,119.8,0.063]
[1743912630747,16.88078531,119.82,119.8,0.063]
[1743912631130,16.67405624,119.81,119.8,0.063]
[1743912632343,22.51655624,119.81,119.8,0.063]
[1743912632713,22.72308531,119.82,119.8,0.063]
[1743912634936,6.04902907,119.82,119.8,0.063]
[1743912635943,0.20672907,119.82,119.8,0.063]
[1743912636139,0.03,119.82,119.8,0.063]
[1743912636844,0.16676385,119.81,119.8,0.063]
[1743912638923,0.16676385,119.81,119.8,18.39985624]
[1743912640244,0.16676385,119.81,119.8,1.7258]
[1743912641041,0.16676385,119.81,119.8,7.5688]
[1743912641238,0.16676385,119.81,119.8,24.24285624]
[1743912641624,0.16676385,119.81,119.8,30.31045624]
[1743912644145,0.16676385,119.81,119.8,49.38658981]
[1743912644437,0.16676385,119.81,119.8,30.73694095]
[1743912644634,0.16676385,119.81,119.8,49.38658981]
[1743912651550,0.16676385,119.81,119.8,32.71253357]
[1743912651753,0.16676385,119.81,119.8,49.38658981]
[1743912654157,0.19676385,119.81,119.8,49.38658981]
[1743912656258,0.03,119.81,119.8,49.38658981]
[1743912656754,0.03,119.81,119.8,30.31045624]
[1743912656961,0.20003622,119.81,119.8,13.6364]
[1743912657151,0.20003622,119.81,119.8,24.24285624]
[1743912658054,0.20003622,119.81,119.8,7.5688]
[1743912659574,0.20003622,119.81,119.8,1.7258]
[1743912665370,0.20003622,119.81,119.8,7.5688]
[1743912665959,0.20003622,119.81,119.8,43.31898981]
[1743912676293,0.03,119.81,119.8,49.51608981]
[1743912676795,0.18132931,119.81,119.8,49.51608981]
[1743912684904,0.18132931,119.81,119.8,43.31898981]
[1743912689000,0.18132931,119.81,119.8,26.64493357]
[1743912689186,0.18132931,119.81,119.8,43.31898981]
[1743912696209,0.03,119.81,119.8,43.31898981]
[1743912696808,0.189005,119.81,119.8,43.31898981]
[1743912700708,0.189005,119.81,119.8,26.64493357]
[1743912701083,0.189005,119.81,119.8,43.31898981]
[1743912701310,0.189005,119.81,119.8,26.64493357]
[1743912703817,0.189005,119.81,119.8,0.063]
[1743912704117,16.86306124,119.81,119.8,0.063]
[1743912704310,0.189005,119.81,119.8,0.063]
[1743912704623,16.86306124,119.81,119.8,0.063]
[1743912705414,22.70556124,119.81,119.8,0.063]
[1743912705587,16.86306124,119.81,119.8,0.063]
[1743912706388,22.70556124,119.81,119.8,0.063]
[1743912707015,0.189005,119.81,119.8,16.87921781]
[1743912707516,0.189005,119.81,119.8,35.81318981]
[1743912707820,0.189005,119.81,119.8,41.65618981]
[1743912708616,0.189005,119.81,119.8,5.906]
[1743912709518,0.189005,119.81,119.8,22.58005624]
[1743912710115,0.189005,119.81,119.8,5.906]
[1743912713022,0.189005,119.81,119.8,22.58005624]
[1743912715621,0.189005,119.81,119.8,41.65618981]
[1743912716209,0.03,119.81,119.8,41.65618981]
[1743912716803,0.19294899,119.81,119.8,41.65618981]
[1743912721227,0.19294899,119.81,119.8,22.58005624]
[1743912721420,0.19294899,119.81,119.8,0.063]
[1743912721723,16.86700523,119.81,119.8,0.063]
[1743912726227,22.70950523,119.81,119.8,0.063]
[1743912727232,23.83510523,119.81,119.8,0.063]
[1743912728631,24.33510523,119.81,119.8,0.063]
[1743912728814,26.0,119.77,119.76,0.063]
[1743912729016,16.67405624,119.77,119.76,0.063]
[1743912730827,22.51855624,119.77,119.76,0.063]
[1743912733336,16.67405624,119.77,119.76,0.063]
[1743912733535,343.95594899,119.81,119.76,0.063]
[1743912733725,16.67405624,119.79,119.76,0.063]
[1743912734533,16.67405624,119.79,119.76,5.908]
[1743912734734,16.67405624,119.8,119.76,5.908]
[1743912735937,16.67405624,119.79,119.76,5.908]
[1743912736307,0.03,119.81,119.78,16.67405624]
[1743912736622,0.03,119.81,119.8,49.64158981]
[1743912736810,0.1817475,119.81,119.8,49.64158981]
[1743912738234,4.75e-05,119.81,119.8,49.64158981]
[1743912754753,9.327e-05,119.82,119.81,19.07613357]
[1743912754929,1.35e-05,119.84,119.83,45.07613357]
[1743912755252,5.215e-05,119.86,119.85,1.5821]
[1743912755441,5.215e-05,119.86,119.85,50.23288981]
[1743912755742,5.215e-05,119.86,119.85,56.30708981]
[1743912756239,0.03,119.91,119.86,19.07613357]
[1743912756438,0.03,119.91,119.9,16.67405624]
[1743912756836,0.20236477,119.91,119.9,16.67405624]
[1743912757559,0.20236477,119.91,119.9,22.51215624]
[1743912758753,0.20236477,119.91,119.9,41.58828981]
[1743912763366,0.20236477,119.91,119.9,22.93864095]
[1743912763569,0.20236477,119.91,119.9,41.58828981]
[1743912764762,0.20236477,119.91,119.9,43.23008981]
[1743912764955,6.477e-05,119.91,119.9,109.92631477]
[1743912765142,6.477e-05,119.91,119.9,116.36251477]
[1743912765548,6.477e-05,119.91,119.9,49.66628981]
[1743912767559,6.477e-05,119.91,119.9,99.73628981]
[1743912772466,6.477e-05,119.91,119.9,99.79928981]
[1743912772868,0.03006477,119.91,119.9,99.79928981]
[1743912776268,0.03,119.91,119.9,99.79928981]
[1743912776856,0.19468226,119.91,119.9,99.79928981]
[1743912780776,0.19468226,119.91,119.9,49.72928981]
[1743912781091,0.19468226,119.91,119.9,26.33471043]
[1743912781377,0.19468226,119.91,119.9,41.36696667]
[1743912781769,0.19468226,119.91,119.9,41.65128981]
[1743912785585,0.19468226,119.91,119.9,24.97723357]
[1743912785882,0.19468226,119.91,119.9,41.65128981]
[1743912793786,0.19468226,119.91,119.9,48.69128981]
[1743912796390,0.03,119.91,119.9,48.69128981]
[1743912796962,0.19436508,119.91,119.9,48.69128981]
[1743912809791,6.508e-05,119.91,119.9,48.69128981]
[1743912810089,6.508e-05,119.91,119.9,115.38751477]
[1743912811467,6.508e-05,119.91,119.9,32.01723357]
[1743912811885,1.092e-05,119.92,119.9,32.01723357]
[1743912812091,1.092e-05,119.92,119.91,19.07613357]
[1743912812595,6.145e-05,119.94,119.93,45.07613357]
[1743912812767,6.145e-05,119.94,119.93,61.75018981]
[1743912814197,6.145e-05,119.94,119.93,67.58688981]
[1743912814491,6.145e-05,119.94,119.93,67.30256667]
[1743912814796,6.145e-05,119.94,119.93,67.58688981]
[1743912816182,0.03,119.96,119.94,24.91213357]
[1743912816388,0.03,119.96,119.94,41.58618981]
[1743912816897,0.17241526,119.95,119.94,41.58618981]
[1743912824603,0.20241526,119.95,119.94,41.58618981]
[1743912830310,0.20241526,119.95,119.94,22.51005624]
[1743912830490,0.20241526,119.95,119.93,26.0]
[1743912831287,0.20241526,119.95,119.93,18.933972]
[1743912832102,0.20241526,119.95,119.92,22.65321781]
[1743912832288,0.20241526,119.95,119.92,24.62881043]
[1743912832486,16.67405624,119.94,119.91,0.063]
[1743912833312,22.51045624,119.94,119.91,0.063]
[1743912834296,22.51075624,119.93,119.91,0.063]
[1743912834596,16.67405624,119.92,119.91,0.063]
[1743912836709,22.51125624,119.92,119.91,0.063]
[1743912837017,23.79205702,119.92,119.91,0.063]
[1743912838816,109.13793084,119.92,119.91,0.063]
[1743912839605,23.79205702,119.92,119.91,0.063]
[1743912850323,109.13793084,119.92,119.91,0.0001]
[1743912850618,109.63793084,119.92,119.91,0.0001]
[1743912850821,42.94170588,119.92,119.91,0.0001]
[1743912851499,42.44170588,119.92,119.91,0.0001]
[1743912851719,42.94170588,119.92,119.91,0.0001]
[1743912852423,109.63793084,119.92,119.91,0.0001]
[1743912854207,26.26764964,119.92,119.91,0.0001]
[1743912854396,42.94170588,119.92,119.91,0.0001]
[1743912854602,109.63793084,119.92,119.91,0.0001]
[1743912855326,42.94170588,119.92,119.91,0.0001]
[1743912855622,42.44170588,119.92,119.91,0.0001]
[1743912856119,42.2865051,119.92,119.91,0.0001]
[1743912856418,42.7865051,119.92,119.91,0.0001]
[1743912856902,42.96320854,119.92,119.91,0.0001]
[1743912857808,109.6594335,119.92,119.9,0.063]
[1743912858009,83.3702812,119.91,119.9,0.063]
[1743912858718,102.01993006,119.91,119.9,0.063]
[1743912858924,102.01993006,119.91,119.9,0.0001]
[1743912860030,89.2079812,119.91,119.9,0.0001]
[1743912860223,26.0,119.88,119.82,24.51395624]
[1743912860421,16.67405624,119.86,119.82,7.8399]
[1743912860618,81.8,119.87,119.82,7.8399]
[1743912860808,16.67405624,119.86,119.82,30.35595624]
[1743912861125,98.47405624,119.87,119.82,30.35595624]
[1743912861326,16.67405624,119.86,119.82,30.35595624]
[1743912866127,98.47405624,119.87,119.82,30.35595624]
[1743912870035,104.31375624,119.87,119.82,30.35595624]
[1743912870331,98.47405624,119.87,119.82,30.35595624]
[1743912876332,104.31365624,119.87,119.82,30.35595624]
[1743912876724,98.47405624,119.87,119.82,30.35595624]
[1743912877038,0.15364365,119.83,119.82,49.43208981]
[1743912884827,0.18040197,119.85,119.84,6.5248]
[1743912885153,0.17274312,119.86,119.85,19.07613357]
[1743912885154,1.27e-05,119.86,119.85,19.07613357]
[1743912885319,0.17435644,119.87,119.86,27.11963357]
[1743912885521,0.17435644,119.87,119.86,43.79368981]
[1743912887452,0.17435644,119.87,119.86,49.63378981]
[1743912887838,5.644e-05,119.87,119.86,49.63378981]
[1743912889854,5.644e-05,119.87,119.86,99.72378981]
[1743912891256,5.644e-05,119.87,119.86,99.78678981]
[1743912892135,5.644e-05,119.87,119.86,83.11273357]
[1743912893663,5.644e-05,119.87,119.86,26.21361043]
[1743912893950,5.644e-05,119.87,119.86,7.4218]
[1743912894325,5.644e-05,119.87,119.86,24.09585624]
[1743912894855,5.644e-05,119.87,119.86,43.17198981]
[1743912895055,5.644e-05,119.87,119.86,26.49793357]
[1743912895559,5.644e-05,119.87,119.86,7.84828471]
[1743912895742,5.644e-05,119.87,119.86,26.49793357]
[1743912897170,7.63e-06,119.9,119.89,45.07613357]
[1743912897344,0.16818759,119.91,119.89,45.07613357]
[1743912897345,9.522e-05,119.91,119.9,20.59483357]
[1743912897534,9.522e-05,119.91,119.9,43.10698981]
[1743912898940,9.522e-05,119.91,119.9,5.8381]
[1743912899762,9.522e-05,119.91,119.9,22.51215624]
[1743912900159,9.522e-05,119.91,119.9,41.58828981]
[1743912905058,9.522e-05,119.91,119.9,6.26458471]
[1743912905271,9.522e-05,119.91,119.9,5.8381]
[1743912906661,9.522e-05,119.91,119.9,22.51215624]
[1743912906866,0.03009522,119.91,119.9,22.51215624]
[1743912908257,0.03009522,119.91,119.9,5.8381]
[1743912916175,0.03,119.91,119.9,5.8381]
[1743912916973,0.20502377,119.91,119.9,5.8381]
[1743912917870,0.20502377,119.91,119.89,5.8385]
[1743912919574,0.20502377,119.91,119.9,0.063]
[1743912921569,0.20502377,119.91,119.89,5.8385]
[1743912921570,26.0,119.87,119.86,0.063]
[1743912921772,42.67405624,119.87,119.86,0.063]
[1743912922074,16.67405624,119.87,119.86,0.063]
[1743912924372,22.51365624,119.87,119.86,0.063]
[1743912927381,29.59365624,119.87,119.86,0.063]
[1743912927683,55.59365624,119.87,119.86,0.063]
[1743912931289,49.75405624,119.87,119.86,0.063]
[1743912933288,55.59365624,119.87,119.86,0.063]
[1743912935691,70.19275624,119.87,119.81,0.063]
[1743912935992,16.67405624,119.83,119.81,0.063]
[1743912936672,16.67405624,119.82,119.81,0.063]
[1743912936868,16.82530603,119.82,119.81,0.063]
[1743912947324,0.15124979,119.82,119.81,0.063]
[1743912947995,16.82530603,119.82,119.81,0.063]
[1743912949095,22.66730603,119.82,119.81,0.063]
[1743912952304,41.31695489,119.82,119.8,0.063]
[1743912952486,16.67405624,119.81,119.8,0.063]
[1743912952987,16.67405624,119.81,119.79,0.063]
[1743912953192,16.67405624,119.8,119.79,0.063]
[1743912955207,22.51705624,119.8,119.78,0.063]
[1743912955386,23.73405624,119.79,119.78,0.063]
[1743912956087,42.3837051,119.79,119.76,0.063]
[1743912956315,42.67405624,119.77,119.76,0.063]
[1743912956996,42.83472238,119.77,119.76,0.063]
[1743912957414,48.67922238,119.77,119.76,0.063]
[1743912958497,115.37544734,119.77,119.76,0.063]
[1743912959511,115.37544734,119.77,119.74,0.063]
[1743912959717,16.67405624,119.75,119.74,0.063]
[1743912960898,16.67405624,119.76,119.74,0.063]
[1743912961104,0.16066614,119.77,119.74,0.063]
[1743912961300,16.83472238,119.77,119.74,0.063]
[1743912961910,0.16066614,119.77,119.74,0.063]
[1743912962524,16.83472238,119.77,119.74,5.9089]
[1743912963016,0.16066614,119.77,119.74,5.9089]
[1743912963218,0.16066614,119.77,119.75,1.6585]
[1743912964728,0.16066614,119.77,119.76,5.845]
[1743912965022,16.83472238,119.77,119.76,5.845]
[1743912966022,16.83472238,119.77,119.75,7.5038]
[1743912967609,0.16066614,119.77,119.75,7.5038]
[1743912976129,118.50295343,119.78,119.75,7.5038]
[1743912977028,0.16333467,119.76,119.75,7.5038]
[1743912978636,0.16333467,119.76,119.75,1.6585]
[1743912979635,0.12287362,119.76,119.75,1.6585]
[1743912979852,16.79692986,119.76,119.74,0.063]
[1743912982236,0.12287362,119.76,119.74,0.063]
[1743912982613,16.79692986,119.76,119.74,0.063]
[1743912983045,0.12287362,119.76,119.74,0.063]
[1743912983338,104.31955624,119.75,119.74,0.063]
[1743912983512,22.51955624,119.75,119.74,0.063]
[1743912988239,41.1692051,119.75,119.74,0.063]
[1743912989223,41.1692051,119.75,119.7,0.063]
[1743912989435,16.67405624,119.71,119.7,0.063]
[1743912990538,16.67405624,119.72,119.7,0.063]
[1743912994540,16.67405624,119.71,119.7,0.063]
[1743912996944,16.83647352,119.71,119.7,0.063]
[1743913004144,22.68387352,119.71,119.7,0.063]
[1743913004451,16.83647352,119.71,119.7,0.063]
[1743913005343,22.68387352,119.71,119.7,0.063]
[1743913007932,26.82976573,119.71,119.7,0.063]
[1743913008750,22.68387352,119.71,119.7,0.063]
[1743913010351,26.91716653,119.71,119.7,0.063]
[1743913015249,22.68387352,119.71,119.7,0.063]
[1743913016353,22.52145624,119.71,119.7,0.063]
[1743913016549,61.59758981,119.71,119.7,0.063]
[1743913016757,102.16209163,119.7,119.69,0.063]
[1743913018071,83.3702812,119.7,119.69,0.063]
[1743913018266,22.52195624,119.7,119.69,0.063]
[1743913020566,108.00999163,119.7,119.69,0.063]
[1743913020869,89.36034277,119.7,119.69,0.063]
[1743913021170,108.00999163,119.7,119.69,0.063]
[1743913023186,26.0,119.68,119.67,0.063]
[1743913023343,42.67405624,119.68,119.67,0.063]
[1743913024784,67.31476667,119.68,119.67,0.063]
[1743913026254,68.09908981,119.68,119.67,0.063]
[1743913027357,67.31476667,119.68,119.67,0.063]
[1743913027558,31.8489,119.68,119.67,0.063]
[1743913027767,48.52295624,119.68,119.67,0.063]
[1743913028274,31.8489,119.68,119.67,0.063]
[1743913028573,48.52295624,119.68,119.67,0.063]
[1743913036972,48.69905547,119.68,119.67,0.063]
[1743913045286,0.17609923,119.68,119.67,0.063]
[1743913045486,0.17609923,119.68,119.67,1.6298]
[1743913047383,0.15728284,119.69,119.67,24.15325624]
[1743913050987,0.15728284,119.69,119.68,16.67405624]
[1743913051286,0.15728284,119.69,119.67,24.15325624]
[1743913051866,16.83133908,119.69,119.67,7.4792]
[1743913052062,16.67405624,119.68,119.67,1.6298]
[1743913056991,16.83807114,119.68,119.67,1.6298]
[1743913057174,26.1640149,119.68,119.67,1.6298]
[1743913057380,0.1640149,119.68,119.67,1.6298]
[1743913058399,42.83807114,119.68,119.67,1.6298]
[1743913061584,42.83807114,119.68,119.67,0.063]
[1743913064501,16.83807114,119.68,119.67,0.063]
[1743913067799,22.68697114,119.68,119.67,0.063]
[1743913069506,48.68697114,119.68,119.67,0.063]
[1743913070404,42.83807114,119.68,119.67,0.063]
[1743913071702,42.86807114,119.68,119.67,0.063]
[1743913076309,42.70405624,119.68,119.67,0.063]
[1743913077014,42.85812626,119.68,119.67,0.063]
[1743913077217,48.70702626,119.68,119.67,0.063]
[1743913080310,42.85812626,119.68,119.67,0.063]
[1743913082192,48.70702626,119.68,119.67,0.063]
[1743913084811,42.85812626,119.68,119.67,0.063]
[1743913086918,16.85812626,119.68,119.67,0.063]
[1743913088320,0.18407002,119.68,119.67,0.063]
[1743913089709,16.85812626,119.68,119.67,0.063]
[1743913090192,22.70702626,119.68,119.67,0.063]
[1743913091615,29.88918783,119.68,119.61,13.7856]
[1743913091811,16.67405624,119.63,119.61,13.7856]
[1743913092012,16.67405624,119.62,119.61,1.5003]
[1743913092410,16.67405624,119.62,119.6,5.8526]
[1743913092906,1.3957,119.67,119.59,5.853]
[1743913092907,16.67405624,119.61,119.59,5.853]
[1743913093108,98.47405624,119.6,119.58,1.5633]
[1743913093313,98.47405624,119.59,119.58,0.063]
[1743913097031,98.625436,119.59,119.58,0.063]
[1743913098130,81.95137976,119.59,119.58,0.063]
[1743913099016,81.95137976,119.59,119.58,26.063]
[1743913099336,81.95137976,119.59,119.58,0.063]
[1743913099537,98.625436,119.59,119.58,0.063]
[1743913104524,81.95137976,119.59,119.58,0.063]
[1743913104724,81.95137976,119.59,119.58,5.9168]
[1743913104923,81.95137976,119.59,119.58,22.59085624]
[1743913105124,81.95137976,119.59,119.58,5.9168]
[1743913105327,0.15137976,119.59,119.58,5.9168]
[1743913105639,0.15137976,119.59,119.58,23.01734095]
[1743913105937,0.15137976,119.59,119.58,6.34328471]
[1743913106726,0.15137976,119.59,119.58,5.9168]
[1743913107542,0.15137976,119.59,119.58,22.59085624]
[1743913108939,0.15137976,119.59,119.58,5.9168]
[1743913110247,0.15137976,119.59,119.58,0.063]
[1743913113045,0.15137976,119.59,119.58,17.16354095]
[1743913113346,7.976e-05,119.59,119.58,37.44198981]
[1743913113644,7.976e-05,119.59,119.58,31.98664095]
[1743913113834,7.976e-05,119.59,119.58,15.31258471]
[1743913114045,7.976e-05,119.59,119.58,31.98664095]
[1743913114649,7.976e-05,119.59,119.58,37.84044095]
[1743913115358,7.976e-05,119.59,119.58,21.16638471]
[1743913116241,16.67405624,119.62,119.58,21.16638471]
[1743913117064,0.18228404,119.59,119.58,21.16638471]
[1743913119247,0.18228404,119.59,119.58,5.9168]
[1743913121263,0.18228404,119.59,119.58,0.063]
[1743913124557,0.18228404,119.59,119.58,16.73705624]
[1743913125553,0.18228404,119.59,119.58,22.59085624]
[1743913125856,0.18228404,119.59,119.58,23.01734095]
[1743913126648,0.24528404,119.59,119.58,23.01734095]
[1743913131259,0.24528404,119.59,119.58,6.20112314]
[1743913131461,0.24528404,119.59,119.58,6.34328471]
[1743913132657,0.24528404,119.59,119.58,23.01734095]
[1743913134452,0.24528404,119.59,119.58,6.34328471]
[1743913136060,0.24528404,119.59,119.58,23.01734095]
[1743913136240,0.063,119.59,119.58,23.01734095]
[1743913137063,0.22360467,119.59,119.58,23.01734095]
[1743913137658,0.22360467,119.59,119.58,22.73301781]
[1743913137863,0.22360467,119.59,119.58,6.34328471]
[1743913138658,0.22360467,119.59,119.58,23.01734095]
[1743913142567,0.22360467,119.59,119.58,6.34328471]
[1743913143567,0.22360467,119.59,119.58,23.01734095]
[1743913144145,0.22360467,119.59,119.58,6.34328471]
[1743913147477,0.22360467,119.59,119.58,41.66698981]
[1743913148853,0.22360467,119.59,119.58,91.86698981]
[1743913150066,4.67e-06,119.59,119.58,91.86698981]
[1743913150269,1.937e-05,119.6,119.59,6.51838471]
[1743913150457,1.937e-05,119.6,119.59,92.04208981]
[1743913150660,6.18e-05,119.61,119.59,92.04208981]
[1743913150855,6.18e-05,119.61,119.6,93.01018981]
[1743913152373,6.18e-05,119.61,119.6,98.86298981]
[1743913153660,6.18e-05,119.61,119.6,100.51718981]
[1743913154665,6.18e-05,119.61,119.6,50.31718981]
[1743913155557,3.422e-05,119.62,119.61,6.27878471]
[1743913155984,3.422e-05,119.62,119.61,5.8523]
[1743913156279,28.82950539,119.64,119.61,5.8523]
[1743913157077,0.16399925,119.62,119.61,5.8523]
[1743913161059,0.16399925,119.62,119.6,6.27928471]
[1743913163383,0.16399925,119.62,119.6,5.8528]
[1743913165680,0.16399925,119.62,119.6,5.9158]
[1743913166076,0.19399925,119.62,119.6,5.9158]
[1743913169862,16.86805549,119.62,119.6,5.9158]
[1743913170370,16.86805549,119.62,119.6,0.063]
[1743913171776,0.19399925,119.62,119.6,0.063]
[1743913176289,0.03,119.62,119.6,0.063]
[1743913176982,0.17044808,119.61,119.6,0.063]
[1743913192709,0.20044808,119.61,119.6,0.063]
[1743913196214,0.03,119.61,119.6,0.063]
[1743913197000,0.20358092,119.61,119.6,0.063]
[1743913201516,16.87763716,119.61,119.6,0.063]
[1743913202020,81.8,119.6,119.58,0.063]
[1743913202202,98.47405624,119.59,119.58,0.063]
[1743913206707,81.8,119.59,119.58,0.063]
[1743913211721,81.8,119.59,119.58,5.9168]
[1743913212015,81.8,119.59,119.58,30.05734095]
[1743913212218,0.063,119.6,119.59,0.42648471]
[1743913212396,0.063,119.6,119.59,17.10054095]
[1743913213601,0.063,119.6,119.59,18.61674095]
[1743913214319,0.063,119.6,119.59,24.47004095]
[1743913214516,0.063,119.6,119.59,7.79598471]
[1743913214817,0.063,119.6,119.59,24.47004095]
[1743913216899,0.063,119.6,119.59,7.79598471]
[1743913217124,0.23231491,119.6,119.59,7.79598471]
[1743913217326,0.23231491,119.6,119.59,24.47004095]
[1743913218327,0.23231491,119.6,119.59,7.79598471]
[1743913220813,0.23231491,119.6,119.59,24.47004095]
[1743913221327,0.23231491,119.6,119.59,7.79598471]
[1743913223434,0.23231491,119.6,119.59,24.47004095]
[1743913223831,0.23231491,119.6,119.59,7.79598471]
[1743913229519,0.23231491,119.6,119.59,24.47004095]
[1743913230623,0.23231491,119.6,119.59,43.11968981]
[1743913231840,0.23231491,119.6,119.59,43.14968981]
[1743913232218,6.505e-05,119.61,119.6,18.64964886]
[1743913232427,6.97e-06,119.62,119.61,0.42648471]
[1743913232633,16.67406321,119.62,119.59,5.8833]
[1743913232944,16.67405624,119.6,119.59,5.8833]
[1743913233120,16.67405624,119.61,119.59,5.8833]
[1743913233615,6.97e-06,119.62,119.59,5.8833]
[1743913233616,16.67405624,119.6,119.59,0.03]
[1743913235530,16.67405624,119.61,119.59,0.03]
[1743913235927,16.67405624,119.6,119.59,0.03]
[1743913237032,16.83174556,119.6,119.59,0.03]
[1743913239141,22.68454556,119.6,119.59,0.03]
[1743913239347,24.08024556,119.6,119.59,0.03]
[1743913239925,18.22744556,119.6,119.59,0.03]
[1743913240740,16.83174556,119.6,119.59,0.03]
[1743913245240,0.15768932,119.6,119.59,0.03]
[1743913245828,16.83174556,119.6,119.59,0.03]
[1743913247437,22.68454556,119.6,119.59,0.03]
[1743913252154,41.47635599,119.6,119.59,0.03]
[1743913253161,18.79181043,119.59,119.52,7.4575]
[1743913253460,16.67405624,119.54,119.52,7.4575]
[1743913254231,16.67405624,119.53,119.49,1.534]
[1743913254431,16.67405624,119.51,119.49,1.534]
[1743913255264,16.67405624,119.51,119.5,5.8575]
[1743913255472,16.67405624,119.51,119.49,5.8579]